[Event "Orlicka sachovnice 2023"]
[Site "Usti nad Orlici, Czech Republic"]
[Date "2023.05.06"]
[Round "7.2"]
[White "Jun, Robert"]
[Black "Cimprich, Lukas"]
[Result "0-1"]
[TimeControl "12 min + 3 s"]
[WhiteElo "1424"]
[BlackElo "1365"]

1. e4 {[%clk 00:12:05]} c5 {[%clk 00:12:06]} {[%emt 00:00:02]} 2. Nf3 {[%clk
00:12:07]} Nc6 {[%clk 00:12:08]} 3. Bb5 {[%clk 00:12:09]} g6 {[%clk 00:12:03]}
{[%emt 00:00:07]} 4. c3 {[%clk 00:12:07]} {[%emt 00:00:05]} Bg7 {[%clk
00:11:56]} {[%emt 00:00:10]} 5. Bxc6 {[%clk 00:12:05]} {[%emt 00:00:05]} dxc6
{[%clk 00:11:25]} {[%emt 00:00:34]} 6. d4 {[%clk 00:11:54]} {[%emt 00:00:15]}
cxd4 {[%clk 00:11:16]} {[%emt 00:00:12]} 7. cxd4 {[%clk 00:11:55]} {[%emt
00:00:01]} Bg4 {[%clk 00:11:08]} {[%emt 00:00:11]} 8. Be3 {[%clk 00:11:25]}
{[%emt 00:00:33]} Bxf3 {[%clk 00:11:03]} {[%emt 00:00:08]} 9. gxf3 {[%clk
00:11:26]} {[%emt 00:00:01]} c5 {[%clk 00:10:47]} {[%emt 00:00:20]} 10. Qa4+
{[%clk 00:10:58]} {[%emt 00:00:31]} Qd7 {[%clk 00:10:36]} {[%emt 00:00:14]} 11.
Qxd7+ {[%clk 00:10:27]} {[%emt 00:00:34]} Kxd7 {[%clk 00:10:38]} 12. Nd2 {[%clk
00:10:18]} {[%emt 00:00:12]} cxd4 {[%clk 00:10:38]} {[%emt 00:00:04]} 13. Bf4
{[%clk 00:10:16]} {[%emt 00:00:05]} e5 {[%clk 00:10:40]} 14. Bg3 {[%clk
00:10:18]} {[%emt 00:00:01]} Ne7 {[%clk 00:10:37]} {[%emt 00:00:06]} 15. O-O
{[%clk 00:10:14]} {[%emt 00:00:07]} Rac8 {[%clk 00:10:20]} {[%emt 00:00:20]} 16.
Rfc1 {[%clk 00:10:16]} {[%emt 00:00:01]} Rxc1+ {[%clk 00:08:51]} {[%emt
00:01:33]} 17. Rxc1 {[%clk 00:10:16]} {[%emt 00:00:03]} Rc8 {[%clk 00:08:53]}
{[%emt 00:00:02]} 18. Rxc8 {[%clk 00:10:14]} {[%emt 00:00:04]} Nxc8 {[%clk
00:08:41]} {[%emt 00:00:15]} 19. Nc4 {[%clk 00:10:14]} {[%emt 00:00:02]} f6
{[%clk 00:08:26]} {[%emt 00:00:18]} 20. f4 {[%clk 00:10:16]} {[%emt 00:00:01]}
Nd6 {[%clk 00:08:13]} {[%emt 00:00:16]} 21. Nxd6 {[%clk 00:10:14]} {[%emt
00:00:04]} Kxd6 {[%clk 00:08:15]} {[%emt 00:00:02]} 22. fxe5+ {[%clk 00:10:14]}
{[%emt 00:00:02]} fxe5 {[%clk 00:08:18]} 23. Kf1 {[%clk 00:10:16]} {[%emt
00:00:01]} Kc5 {[%clk 00:08:08]} {[%emt 00:00:13]} 24. Ke2 {[%clk 00:10:16]}
{[%emt 00:00:02]} Kc4 {[%clk 00:08:08]} {[%emt 00:00:04]} 25. f4 {[%clk
00:10:08]} {[%emt 00:00:10]} exf4 {[%clk 00:07:52]} {[%emt 00:00:20]} 26. Bxf4
{[%clk 00:10:09]} {[%emt 00:00:01]} d3+ {[%clk 00:07:53]} {[%emt 00:00:02]} 27.
Kd2 {[%clk 00:10:11]} Bxb2 {[%clk 00:07:55]} {[%emt 00:00:02]} 28. e5 {[%clk
00:09:49]} {[%emt 00:00:26]} Kd5 {[%clk 00:07:41]} {[%emt 00:00:16]} 29. e6
{[%clk 00:09:50]} {[%emt 00:00:01]} Kxe6 {[%clk 00:07:41]} {[%emt 00:00:03]} 30.
Kxd3 {[%clk 00:09:52]} {[%emt 00:00:01]} Kd5 {[%clk 00:07:42]} {[%emt
00:00:03]} 31. Be3 {[%clk 00:09:53]} {[%emt 00:00:02]} a6 {[%clk 00:07:43]}
{[%emt 00:00:01]} 32. a4 {[%clk 00:09:50]} {[%emt 00:00:06]} b5 {[%clk
00:07:34]} {[%emt 00:00:13]} 33. axb5 {[%clk 00:09:49]} {[%emt 00:00:05]} axb5
{[%clk 00:07:36]} 34. Kc2 {[%clk 00:09:50]} {[%emt 00:00:01]} Be5 {[%clk
00:07:36]} {[%emt 00:00:03]} 35. h3 {[%clk 00:09:52]} {[%emt 00:00:02]} Kc4
{[%clk 00:07:35]} {[%emt 00:00:04]} 36. Bg5 {[%clk 00:09:32]} {[%emt 00:00:23]}
b4 {[%clk 00:07:33]} {[%emt 00:00:05]} 37. Kd1 {[%clk 00:09:34]} {[%emt
00:00:01]} Kd3 {[%clk 00:07:27]} {[%emt 00:00:09]} 38. Kc1 {[%clk 00:09:33]}
{[%emt 00:00:04]} b3 {[%clk 00:07:29]} {[%emt 00:00:01]} 39. Kb1 {[%clk
00:09:34]} b2 {[%clk 00:07:24]} {[%emt 00:00:08]} 40. h4 {[%clk 00:09:26]}
{[%emt 00:00:12]} Ke4 {[%clk 00:07:11]} {[%emt 00:00:16]} 41. Be7 {[%clk
00:09:24]} {[%emt 00:00:05]} Kf5 {[%clk 00:07:11]} {[%emt 00:00:03]} 42. Bg5
{[%clk 00:09:23]} {[%emt 00:00:04]} Bf6 {[%clk 00:07:03]} {[%emt 00:00:11]} 43.
Bxf6 {[%clk 00:09:22]} {[%emt 00:00:04]} Kxf6 {[%clk 00:07:06]} 44. h5 {[%clk
00:09:22]} {[%emt 00:00:03]} g5 {[%clk 00:07:08]} {[%emt 00:00:01]} 45. Kxb2
{[%clk 00:09:24]} {[%emt 00:00:01]} Kf5 {[%clk 00:07:10]} {[%emt 00:00:01]} 46.
Kc2 {[%clk 00:09:26]} Kg4 {[%clk 00:07:12]} 47. Kd2 {[%clk 00:09:28]} Kxh5
{[%clk 00:07:14]} {[%emt 00:00:01]} 48. Ke2 {[%clk 00:09:30]} Kh4 {[%clk
00:07:16]} 49. Kf1 {[%clk 00:09:32]} h6 {[%clk 00:07:17]} {[%emt 00:00:03]} 50.
Kg2 {[%clk 00:09:34]} Kg4 {[%clk 00:07:19]} 51. Kh1 {[%clk 00:09:36]} Kh3
{[%clk 00:07:22]} {[%emt 00:00:01]} 52. Kg1 {[%clk 00:09:38]} {[%emt 00:00:01]}
Kg3 {[%clk 00:07:24]} 53. Kh1 {[%clk 00:09:40]} {[%emt 00:00:02]} h5 {[%clk
00:07:26]} {[%emt 00:00:02]} 54. Kg1 {[%clk 00:09:41]} {[%emt 00:00:01]} g4
{[%clk 00:07:27]} {[%emt 00:00:02]} 55. Kh1 {[%clk 00:09:43]} {[%emt 00:00:01]}
Kf2 {[%clk 00:07:29]} {[%emt 00:00:01]} 56. Kh2 {[%clk 00:09:44]} {[%emt
00:00:02]} g3 {[%clk 00:07:31]} {[%emt 00:00:01]} 57. Kh1 {[%clk 00:09:46]} g2+
{[%clk 00:07:33]} {[%emt 00:00:01]} 58. Kh2 {[%clk 00:09:48]} {[%emt 00:00:01]}
g1=Q {[%clk 00:07:33]} {[%emt 00:00:02]} 59. Kh3 {[%clk 00:09:51]} Qg4+ {[%clk
00:07:34]} {[%emt 00:00:03]} 60. Kh2 {[%clk 00:09:51]} {[%emt 00:00:02]} Qg2
{[%clk 00:07:36]} {[%emt 00:00:02]} 0-1

[Event "Orlicka sachovnice 2023"]
[Site "Usti nad Orlici, Czech Republic"]
[Date "2023.05.06"]
[Round "7.3"]
[White "Jun, Rostislav"]
[Black "Kafka, Ondrej"]
[Result "0-1"]
[TimeControl "12 min + 3 s"]
[WhiteElo "1370"]
[BlackElo "1271"]

1. e4 {[%clk 00:12:02]} {[%emt 00:00:04]} e6 {[%clk 00:12:05]} {[%emt
00:00:04]} 2. d4 {[%clk 00:12:03]} {[%emt 00:00:03]} d5 {[%clk 00:12:07]}
{[%emt 00:00:02]} 3. e5 {[%clk 00:12:05]} c5 {[%clk 00:12:08]} {[%emt
00:00:01]} 4. c3 {[%clk 00:12:07]} Nc6 {[%clk 00:12:10]} {[%emt 00:00:01]} 5.
Be3 {[%clk 00:12:05]} {[%emt 00:00:05]} Qb6 {[%emt 00:00:04]} 6. b3 {[%emt
00:00:31]} cxd4 {[%clk 00:10:27]} {[%emt 00:01:12]} 7. cxd4 {[%clk 00:11:59]}
{[%emt 00:00:08]} Bb4+ {[%clk 00:10:18]} {[%emt 00:00:10]} 8. Bd2 {[%clk
00:11:21]} {[%emt 00:00:43]} Qxd4 {[%clk 00:09:32]} {[%emt 00:00:48]} 9. Bxb4
{[%clk 00:10:36]} {[%emt 00:00:48]} Qxa1 {[%clk 00:08:47]} {[%emt 00:00:48]} 10.
Bc3 {[%clk 00:10:29]} {[%emt 00:00:12]} Qxa2 {[%clk 00:08:43]} {[%emt
00:00:06]} 11. Nf3 {[%clk 00:10:24]} {[%emt 00:00:08]} Nge7 {[%clk 00:08:01]}
{[%emt 00:00:45]} 12. Bd3 {[%clk 00:09:54]} {[%emt 00:00:33]} O-O {[%clk
00:07:26]} {[%emt 00:00:38]} 13. Ng5 {[%clk 00:09:53]} {[%emt 00:00:04]} Ng6
{[%clk 00:06:35]} {[%emt 00:00:54]} 14. Qh5 {[%clk 00:09:43]} {[%emt 00:00:13]}
h6 {[%clk 00:06:14]} {[%emt 00:00:24]} 15. Nf3 {[%clk 00:09:19]} {[%emt
00:00:27]} Nf4 {[%clk 00:05:25]} {[%emt 00:00:51]} 0-1

[Event "Orlicka sachovnice 2023"]
[Site "Usti nad Orlici, Czech Republic"]
[Date "2023.05.06"]
[Round "7.4"]
[White "Smehlik, Vojtech"]
[Black "Vuova, Karolina"]
[Result "1-0"]
[TimeControl "12 min + 3 s"]
[WhiteElo "1369"]
[BlackElo "1300"]

1. e4 {[%clk 00:12:05]} e5 {[%clk 00:12:05]} {[%emt 00:00:02]} 2. Nc3 {[%clk
00:12:06]} Nc6 {[%clk 00:12:07]} {[%emt 00:00:02]} 3. Bc4 {[%clk 00:12:08]}
{[%emt 00:00:01]} Bc5 {[%clk 00:12:08]} {[%emt 00:00:02]} 4. Qg4 {[%clk
00:12:09]} {[%emt 00:00:02]} g6 {[%clk 00:11:58]} {[%emt 00:00:13]} 5. Nd5
{[%clk 00:11:49]} {[%emt 00:00:24]} Nf6 {[%clk 00:11:05]} {[%emt 00:00:56]} 6.
Nxf6+ {[%clk 00:11:32]} {[%emt 00:00:20]} Qxf6 {[%clk 00:11:05]} {[%emt
00:00:03]} 7. Qf3 {[%clk 00:11:33]} {[%emt 00:00:02]} Qxf3 {[%clk 00:10:41]}
{[%emt 00:00:26]} 8. Nxf3 {[%clk 00:11:35]} {[%emt 00:00:01]} d6 {[%clk
00:10:38]} {[%emt 00:00:06]} 9. h3 {[%clk 00:11:36]} {[%emt 00:00:02]} Nb4
{[%clk 00:10:37]} {[%emt 00:00:04]} 10. Bb3 {[%clk 00:11:32]} {[%emt 00:00:07]}
Be6 {[%clk 00:10:34]} {[%emt 00:00:05]} 11. a3 {[%clk 00:11:09]} {[%emt
00:00:27]} Nc6 {[%clk 00:10:21]} {[%emt 00:00:16]} 12. Ba4 {[%clk 00:11:06]}
{[%emt 00:00:06]} O-O {[%clk 00:10:03]} {[%emt 00:00:20]} 13. Bxc6 {[%clk
00:11:01]} {[%emt 00:00:09]} bxc6 {[%clk 00:10:05]} {[%emt 00:00:01]} 14. O-O
{[%clk 00:10:40]} {[%emt 00:00:24]} a5 {[%clk 00:10:00]} {[%emt 00:00:08]} 15.
d3 {[%emt 00:00:12]} f5 {[%clk 00:09:59]} 16. Bh6 {[%clk 00:10:19]} {[%emt
00:00:19]} Rfe8 {[%clk 00:09:38]} {[%emt 00:00:24]} 17. Ng5 {[%clk 00:10:04]}
{[%emt 00:00:18]} f4 {[%clk 00:09:21]} {[%emt 00:00:21]} 18. Nxe6 {[%clk
00:09:33]} {[%emt 00:00:34]} Rxe6 {[%clk 00:09:22]} {[%emt 00:00:01]} 19. Kh1
{[%clk 00:09:33]} {[%emt 00:00:03]} d5 {[%clk 00:09:19]} {[%emt 00:00:06]} 20.
c3 {[%clk 00:09:18]} {[%emt 00:00:18]} d4 {[%clk 00:09:00]} {[%emt 00:00:23]}
21. b4 {[%clk 00:09:07]} {[%emt 00:00:14]} Bb6 {[%clk 00:08:36]} {[%emt
00:00:27]} 22. c4 {[%clk 00:08:52]} {[%emt 00:00:18]} c5 {[%clk 00:08:24]}
{[%emt 00:00:16]} 23. b5 {[%clk 00:08:20]} {[%emt 00:00:34]} a4 {[%clk
00:08:15]} {[%emt 00:00:12]} 24. g3 {[%clk 00:08:12]} {[%emt 00:00:10]} Rf6
{[%clk 00:07:28]} {[%emt 00:00:50]} 25. gxf4 {[%clk 00:07:47]} {[%emt
00:00:28]} exf4 {[%clk 00:07:30]} {[%emt 00:00:01]} 26. Rg1 {[%clk 00:07:33]}
{[%emt 00:00:18]} Re8 {[%clk 00:07:01]} {[%emt 00:00:31]} 27. Rg4 {[%clk
00:07:09]} {[%emt 00:00:27]} f3 {[%clk 00:06:58]} {[%emt 00:00:06]} 28. Rag1
{[%clk 00:07:07]} {[%emt 00:00:05]} c6 {[%clk 00:06:39]} {[%emt 00:00:23]} 29.
bxc6 Rxc6 {[%clk 00:06:40]} 30. Rf4 {[%clk 00:06:59]} {[%emt 00:00:02]} Bc7
{[%emt 00:00:18]} 31. Rxf3 {[%clk 00:06:54]} Bd6 {[%clk 00:05:58]} {[%emt
00:00:39]} 32. Rb1 {[%clk 00:06:52]} {[%emt 00:00:04]} Re5 {[%clk 00:05:16]}
{[%emt 00:00:45]} 33. Rb8+ {[%clk 00:06:28]} {[%emt 00:00:28]} 1-0

[Event "Orlicka sachovnice 2023"]
[Site "Usti nad Orlici, Czech Republic"]
[Date "2023.05.06"]
[Round "7.5"]
[White "Zimmermann, Jost"]
[Black "Kvapil, Paul"]
[Result "1-0"]
[TimeControl "12 min + 3 s"]
[WhiteElo "1061"]
[BlackElo "1279"]

1. e4 {[%clk 00:12:05]} c5 {[%clk 00:12:03]} {[%emt 00:00:04]} 2. Nf3 {[%clk
00:12:06]} {[%emt 00:00:02]} Nc6 {[%clk 00:12:05]} 3. d4 {[%clk 00:12:01]}
{[%emt 00:00:08]} cxd4 {[%clk 00:12:07]} {[%emt 00:00:01]} 4. Nxd4 {[%clk
00:12:03]} d6 {[%clk 00:12:09]} {[%emt 00:00:02]} 5. Nxc6 {[%clk 00:12:00]}
{[%emt 00:00:05]} bxc6 {[%clk 00:12:11]} 6. Bc4 {[%clk 00:11:59]} {[%emt
00:00:04]} Nf6 {[%clk 00:11:53]} {[%emt 00:00:21]} 7. Nc3 {[%clk 00:11:59]}
{[%emt 00:00:03]} Bb7 {[%clk 00:11:44]} {[%emt 00:00:13]} 8. Bg5 {[%clk
00:11:49]} {[%emt 00:00:12]} e5 {[%clk 00:11:15]} {[%emt 00:00:32]} 9. Qf3
{[%clk 00:11:25]} {[%emt 00:00:26]} Be7 {[%clk 00:10:51]} {[%emt 00:00:28]} 10.
O-O {[%clk 00:11:20]} {[%emt 00:00:09]} O-O {[%clk 00:10:47]} {[%emt 00:00:08]}
11. Qg3 {[%clk 00:10:53]} {[%emt 00:00:27]} Nh5 {[%clk 00:09:57]} {[%emt
00:00:54]} 12. Bxe7 {[%clk 00:10:43]} {[%emt 00:00:13]} Qxe7 {[%clk 00:09:58]}
{[%emt 00:00:02]} 13. Qg4 {[%clk 00:10:32]} {[%emt 00:00:13]} Nf6 {[%clk
00:09:43]} {[%emt 00:00:18]} 14. Qg3 {[%clk 00:10:00]} {[%emt 00:00:33]} d5
{[%clk 00:09:21]} {[%emt 00:00:28]} 15. exd5 {[%clk 00:10:00]} {[%emt
00:00:02]} cxd5 {[%clk 00:09:22]} {[%emt 00:00:02]} 16. Bb3 {[%clk 00:09:47]}
{[%emt 00:00:17]} Rac8 {[%clk 00:08:53]} {[%emt 00:00:33]} 17. Rfe1 {[%clk
00:09:40]} {[%emt 00:00:09]} Rfe8 {[%clk 00:08:42]} {[%emt 00:00:14]} 18. Rad1
{[%clk 00:09:30]} {[%emt 00:00:13]} d4 {[%clk 00:08:00]} {[%emt 00:00:45]} 19.
Ne2 {[%clk 00:09:11]} {[%emt 00:00:22]} Bd5 {[%clk 00:07:23]} {[%emt 00:00:39]}
20. Bxd5 {[%clk 00:08:54]} {[%emt 00:00:21]} Nxd5 {[%clk 00:07:23]} {[%emt
00:00:02]} 21. Nxd4 {[%clk 00:08:51]} {[%emt 00:00:07]} Nb4 {[%clk 00:04:43]}
{[%emt 00:02:40]} 22. c3 {[%clk 00:07:40]} {[%emt 00:01:16]} Qb7 {[%clk
00:02:53]} {[%emt 00:01:53]} 23. Nf5 {[%clk 00:07:23]} {[%emt 00:00:18]} g6
{[%clk 00:01:40]} {[%emt 00:01:18]} 24. Nd6 {[%clk 00:07:20]} {[%emt 00:00:06]}
1-0

[Event "Orlicka sachovnice 2023"]
[Site "Usti nad Orlici, Czech Republic"]
[Date "2023.05.06"]
[Round "7.7"]
[White "Kopecky, Lukas"]
[Black "Padivy, Jan"]
[Result "0-1"]
[TimeControl "12 min + 3 s"]
[WhiteElo "1057"]
[BlackElo "1189"]

1. e4 {[%clk 00:12:02]} {[%emt 00:00:03]} c6 {[%clk 00:12:06]} 2. d4 {[%clk
00:12:02]} {[%emt 00:00:02]} d5 {[%clk 00:12:08]} {[%emt 00:00:02]} 3. exd5
{[%clk 00:12:03]} {[%emt 00:00:01]} cxd5 {[%clk 00:12:09]} {[%emt 00:00:01]} 4.
Nf3 {[%clk 00:11:55]} {[%emt 00:00:11]} Nc6 {[%clk 00:12:09]} {[%emt 00:00:04]}
5. Nc3 {[%clk 00:11:41]} {[%emt 00:00:16]} Nf6 {[%clk 00:12:10]} {[%emt
00:00:02]} 6. Bf4 {[%clk 00:11:38]} {[%emt 00:00:06]} Bf5 {[%clk 00:11:35]}
{[%emt 00:00:38]} 7. Bb5 {[%clk 00:11:27]} {[%emt 00:00:14]} a6 {[%clk
00:11:35]} {[%emt 00:00:04]} 8. Bd3 {[%clk 00:11:19]} {[%emt 00:00:10]} Qd7
{[%clk 00:10:50]} {[%emt 00:00:39]} 9. Qd2 {[%clk 00:10:53]} {[%emt 00:00:38]}
g6 {[%clk 00:10:39]} {[%emt 00:00:15]} 10. O-O-O {[%clk 00:10:34]} {[%emt
00:00:21]} Bg7 {[%clk 00:10:38]} {[%emt 00:00:04]} 11. Rhe1 {[%clk 00:09:49]}
{[%emt 00:00:47]} O-O {[%clk 00:10:32]} {[%emt 00:00:16]} 12. h3 {[%clk
00:09:10]} {[%emt 00:00:39]} Rfc8 {[%clk 00:10:24]} {[%emt 00:00:09]} 13. g4
{[%clk 00:09:06]} {[%emt 00:00:09]} Bxd3 {[%clk 00:10:21]} {[%emt 00:00:06]} 14.
Qxd3 {[%clk 00:08:57]} {[%emt 00:00:10]} b5 {[%emt 00:00:03]} 15. Qd2 {[%clk
00:08:39]} {[%emt 00:00:20]} b4 {[%clk 00:10:00]} {[%emt 00:00:26]} 16. Ne2
{[%clk 00:08:19]} {[%emt 00:00:22]} a5 {[%emt 00:00:18]} 17. g5 {[%clk
00:07:36]} {[%emt 00:00:33]} Ne4 {[%clk 00:09:43]} {[%emt 00:00:15]} 18. Qd3
{[%clk 00:06:51]} {[%emt 00:00:52]} Nxf2 {[%clk 00:09:34]} {[%emt 00:00:11]} 19.
Qe3 {[%clk 00:06:19]} {[%emt 00:00:36]} Nxd1 {[%clk 00:09:33]} {[%emt
00:00:03]} 20. Rxd1 {[%clk 00:06:20]} {[%emt 00:00:02]} Qxh3 {[%clk 00:08:32]}
{[%emt 00:01:02]} 21. Rg1 {[%clk 00:05:06]} {[%emt 00:01:19]} Qf5 {[%clk
00:08:12]} {[%emt 00:00:05]} 22. Ng3 {[%clk 00:04:39]} {[%emt 00:00:48]} Qd7
{[%clk 00:08:01]} {[%emt 00:00:08]} 23. Rh1 {[%clk 00:03:59]} {[%emt 00:00:49]}
a4 {[%clk 00:07:26]} {[%emt 00:00:31]} 24. Qd2 {[%clk 00:03:15]} {[%emt
00:00:53]} b3 {[%clk 00:07:24]} {[%emt 00:00:06]} 25. a3 {[%clk 00:03:15]}
{[%emt 00:00:02]} bxc2 {[%emt 00:01:29]} 26. Ne5 {[%clk 00:01:57]} Nxe5 {[%clk
00:06:47]} {[%emt 00:00:34]} 27. Bxe5 {[%clk 00:01:46]} {[%emt 00:00:15]} Qb5
{[%clk 00:06:11]} {[%emt 00:00:22]} 28. Qh2 {[%clk 00:01:17]} {[%emt 00:00:48]}
h5 {[%clk 00:05:37]} {[%emt 00:00:37]} 29. gxh6 {[%clk 00:01:11]} {[%emt
00:00:10]} Bxe5 {[%clk 00:05:30]} {[%emt 00:00:11]} 30. h7+ {[%clk 00:00:55]}
{[%emt 00:00:19]} Kh8 {[%clk 00:04:55]} {[%emt 00:00:35]} 31. dxe5 {[%emt
00:00:20]} Rab8 {[%emt 00:00:46]} 32. Kd2 {[%emt 00:00:12]} Qxb2 {[%clk
00:04:32]} {[%emt 00:00:06]} 33. Ne2 {[%clk 00:00:07]} {[%emt 00:00:05]} c1=Q+
{[%emt 00:00:15]} 34. Kd3 {[%emt 00:00:02]} Qbd2# {[%emt 00:00:10]} 0-1

[Event "Orlicka sachovnice 2023"]
[Site "Usti nad Orlici, Czech Republic"]
[Date "2023.05.06"]
[Round "8.1"]
[White "Stary, Vojtech"]
[Black "Kafka, Ondrej"]
[Result "1-0"]
[TimeControl "12 min + 3 s"]
[WhiteElo "1604"]
[BlackElo "1271"]

1. d4 {[%emt 00:00:20]} Nf6 {[%emt 00:00:03]} 2. c4 {[%emt 00:00:08]} d6 {[%emt
00:00:08]} 3. Nc3 {[%emt 00:00:10]} g6 {[%clk 00:11:28]} {[%emt 00:00:07]} 4.
e4 {[%clk 00:12:00]} {[%emt 00:00:01]} Nbd7 {[%emt 00:00:20]} 5. Nf3 {[%emt
00:00:06]} Bg7 {[%clk 00:11:24]} 6. Be2 {[%clk 00:11:44]} {[%emt 00:00:06]} O-O
{[%emt 00:00:15]} 7. h3 {[%emt 00:00:22]} c5 {[%emt 00:00:11]} 8. d5 {[%emt
00:01:46]} b6 {[%emt 00:00:05]} 9. Be3 {[%emt 00:00:54]} Ba6 {[%emt 00:00:30]}
10. Qd2 {[%emt 00:00:07]} Re8 {[%emt 00:00:42]} 11. Bh6 {[%emt 00:00:20]} Bb7
{[%emt 00:00:29]} 12. g4 {[%emt 00:00:13]} Nf8 {[%clk 00:07:12]} {[%emt
00:01:38]} 13. Bxg7 Kxg7 {[%emt 00:00:22]} 14. g5 {[%emt 00:00:34]} Nh5 {[%clk
00:05:35]} {[%emt 00:00:24]} 15. Nh4 Bc8 {[%emt 00:02:03]} 16. O-O-O {[%emt
00:00:28]} a6 {[%emt 00:00:16]} 17. Bxh5 {[%emt 00:00:04]} gxh5 {[%emt
00:00:46]} 18. Qe2 {[%emt 00:00:31]} Ng6 {[%emt 00:00:13]} 19. Qxh5 {[%emt
00:01:00]} Bd7 {[%emt 00:00:34]} 20. Nf5+ {[%emt 00:00:33]} Bxf5 {[%emt
00:00:18]} 21. exf5 {[%emt 00:00:13]} Ne5 {[%emt 00:00:24]} 22. Qh6+ {[%clk
00:05:25]} {[%emt 00:00:05]} Kh8 {[%emt 00:00:12]} 23. f4 {[%emt 00:01:17]} Nd7
{[%emt 00:00:13]} 24. g6 {[%emt 00:00:07]} Nf6 {[%clk 00:01:41]} {[%emt
00:00:02]} 25. Ne4 {[%emt 00:00:33]} Rg8 {[%emt 00:00:05]} 26. Nxf6 {[%emt
00:00:16]} Rg7 {[%emt 00:00:24]} 27. Nh5 {[%emt 00:00:07]} Qf8 {[%emt
00:00:21]} 28. Nxg7 {[%clk 00:04:14]} {[%emt 00:00:06]} Qxg7 {[%clk 00:00:57]}
{[%emt 00:00:04]} 29. Qxg7+ {[%emt 00:00:02]} Kxg7 {[%clk 00:00:59]} {[%emt
00:00:03]} 30. gxh7 Kxh7 {[%emt 00:00:05]} 31. Rdg1 {[%clk 00:04:16]} {[%emt
00:00:06]} 1-0

[Event "Orlicka sachovnice 2023"]
[Site "Usti nad Orlici, Czech Republic"]
[Date "2023.05.06"]
[Round "8.2"]
[White "Cimprich, Lukas"]
[Black "Seidl, Vaclav"]
[Result "1-0"]
[TimeControl "12 min + 3 s"]
[WhiteElo "1365"]
[BlackElo "1373"]

1. e4 {[%clk 00:12:04]} {[%emt 00:00:02]} d6 {[%clk 00:12:00]} {[%emt
00:00:07]} 2. d4 {[%clk 00:12:02]} {[%emt 00:00:04]} Nf6 {[%clk 00:12:01]}
{[%emt 00:00:01]} 3. Nc3 {[%clk 00:12:04]} {[%emt 00:00:02]} g6 {[%clk
00:12:03]} 4. Bc4 {[%clk 00:12:03]} {[%emt 00:00:03]} Bg7 {[%clk 00:12:05]}
{[%emt 00:00:02]} 5. Qe2 {[%clk 00:12:02]} {[%emt 00:00:04]} O-O {[%clk
00:12:01]} {[%emt 00:00:08]} 6. e5 {[%clk 00:11:42]} {[%emt 00:00:23]} dxe5
{[%clk 00:11:46]} {[%emt 00:00:17]} 7. dxe5 {[%clk 00:11:44]} {[%emt 00:00:01]}
Ne8 {[%clk 00:11:41]} {[%emt 00:00:09]} 8. Nf3 {[%clk 00:10:41]} {[%emt
00:01:06]} e6 {[%clk 00:11:36]} {[%emt 00:00:07]} 9. O-O {[%clk 00:10:30]}
{[%emt 00:00:15]} c5 {[%clk 00:11:19]} {[%emt 00:00:20]} 10. Be3 {[%clk
00:09:50]} {[%emt 00:00:42]} b6 {[%clk 00:11:17]} {[%emt 00:00:06]} 11. Rad1
{[%clk 00:09:15]} {[%emt 00:00:38]} Qe7 {[%clk 00:10:49]} {[%emt 00:00:30]} 12.
a3 {[%clk 00:08:29]} {[%emt 00:00:51]} Nc6 {[%clk 00:10:48]} {[%emt 00:00:04]}
13. Nb5 {[%clk 00:08:02]} {[%emt 00:00:29]} Nxe5 {[%clk 00:10:00]} {[%emt
00:00:50]} 14. Nc3 {[%clk 00:05:01]} {[%emt 00:03:04]} Nxc4 {[%clk 00:09:27]}
{[%emt 00:00:37]} 15. Qxc4 {[%clk 00:05:03]} Nd6 {[%clk 00:09:17]} {[%emt
00:00:14]} 16. Qd3 {[%clk 00:04:09]} {[%emt 00:00:56]} Nf5 {[%clk 00:08:19]}
{[%emt 00:01:02]} 17. Bf4 {[%emt 00:00:50]} Bb7 {[%clk 00:07:31]} {[%emt
00:00:49]} 18. Bd6 {[%clk 00:01:37]} {[%emt 00:01:50]} Nxd6 {[%clk 00:06:40]}
{[%emt 00:00:53]} 19. Qxd6 {[%clk 00:01:38]} {[%emt 00:00:02]} Qxd6 {[%clk
00:06:27]} {[%emt 00:00:16]} 20. Rxd6 {[%clk 00:01:40]} {[%emt 00:00:02]} Rfd8
{[%clk 00:06:29]} {[%emt 00:00:01]} 21. Rfd1 {[%clk 00:01:39]} {[%emt
00:00:04]} Bf6 {[%clk 00:06:31]} {[%emt 00:00:01]} 22. Rxd8+ {[%clk 00:01:04]}
{[%emt 00:00:38]} Rxd8 {[%clk 00:06:32]} {[%emt 00:00:02]} 23. Rxd8+ {[%clk
00:01:06]} {[%emt 00:00:01]} Bxd8 {[%clk 00:06:33]} {[%emt 00:00:02]} 24. Nd2
{[%clk 00:01:04]} {[%emt 00:00:04]} Bf6 {[%clk 00:06:28]} {[%emt 00:00:07]} 25.
Kf1 {[%clk 00:00:43]} {[%emt 00:00:25]} Kf8 {[%clk 00:06:30]} 26. g3 {[%clk
00:00:22]} {[%emt 00:00:24]} Ke7 {[%clk 00:06:31]} {[%emt 00:00:02]} 27. Ke2
{[%clk 00:00:24]} {[%emt 00:00:02]} Kd6 {[%clk 00:05:51]} {[%emt 00:00:42]} 28.
f4 {[%clk 00:00:26]} {[%emt 00:00:01]} Bd4 {[%clk 00:05:39]} {[%emt 00:00:15]}
29. Nce4+ {[%clk 00:00:17]} {[%emt 00:00:12]} Bxe4 {[%clk 00:05:17]} {[%emt
00:00:25]} 30. Nxe4+ {[%clk 00:00:19]} Ke7 {[%clk 00:04:19]} {[%emt 00:01:27]}
31. c3 {[%clk 00:01:11]} {[%emt 00:00:10]} Bf6 {[%clk 00:04:18]} {[%emt
00:00:05]} 32. Kd3 {[%clk 00:01:04]} {[%emt 00:00:09]} e5 {[%clk 00:04:02]}
{[%emt 00:00:19]} 33. fxe5 {[%clk 00:00:43]} {[%emt 00:00:24]} Bxe5 {[%clk
00:04:00]} {[%emt 00:00:03]} 34. Ng5 {[%clk 00:00:41]} {[%emt 00:00:05]} h6
{[%clk 00:04:01]} {[%emt 00:00:03]} 35. Nf3 {[%clk 00:00:43]} {[%emt 00:00:02]}
Ke6 {[%clk 00:03:56]} {[%emt 00:00:07]} 36. b4 {[%clk 00:00:24]} {[%emt
00:00:23]} cxb4 {[%clk 00:03:40]} {[%emt 00:00:19]} 37. cxb4 {[%clk 00:00:21]}
{[%emt 00:00:05]} f5 {[%clk 00:02:56]} {[%emt 00:00:47]} 38. b5 {[%clk
00:00:10]} {[%emt 00:00:15]} f4 {[%clk 00:01:52]} {[%emt 00:01:06]} 39. gxf4
{[%clk 00:00:11]} {[%emt 00:00:03]} Bxf4 {[%clk 00:01:51]} {[%emt 00:00:03]} 40.
Nd4+ {[%clk 00:00:13]} {[%emt 00:00:01]} Kd5 {[%clk 00:01:29]} {[%emt
00:00:25]} 41. h3 {[%clk 00:00:10]} {[%emt 00:00:07]} Bc1 {[%clk 00:00:52]}
{[%emt 00:00:39]} 42. a4 {[%emt 00:00:02]} Kc5 {[%clk 00:00:46]} {[%emt
00:00:08]} 43. Nc6 {[%clk 00:00:12]} {[%emt 00:00:03]} a6 {[%clk 00:00:19]}
{[%emt 00:00:31]} 44. Ne7 {[%clk 00:00:06]} {[%emt 00:00:09]} g5 {[%clk
00:00:07]} {[%emt 00:00:15]} 45. bxa6 {[%clk 00:00:07]} {[%emt 00:00:01]} Bf4
{[%clk 00:00:00]} {[%emt 00:00:07]} 1-0